Cogmind - Beta 15 @@@ ROGUE MODE // 2025.09.05 @ 01:14:24 Player: fai Result: Destroyed by S-43 Plague with Heavy Machine Gun Performance ------------- Evolutions (9) 4500 Regions Visited (24) 4800 Robots Destroyed (212) 1060 Value Destroyed (15299) 15299 Prototype IDs (21) 420 Alien Tech Used (0) 0 Bonus (21627) 21627 TOTAL SCORE: 47706 Bonus ------- High Alert Combat Kills 2543 Follower Combat Kills 11667 Entered Garrisons 2000 Used RIF Installer 5500 Friendly Fire -83 Cogmind --------- Core Integrity 0/1600 Matter 78/300 Energy 99/100 System Corruption 19% Temperature Cool (0) Movement Core (50) Location -1/Command Parts ------- > --- POWER (2) -------- (None) > --- PROPULSION (4) --- (None) > --- UTILITY (14) ----- (None) > --- WEAPON (5) ------- (None) > --- INVENTORY (5) ---- Centrium Leg Centrium Leg Centrium Leg Railgun Peak State ------------ > --- POWER ------------ Particle Reactor Reinforced Quantum Reactor > --- PROPULSION ------- Enhanced Biometal Leg Centrium Leg Heavy Shield Leg > --- UTILITY ---------- Enhanced Optical Array Advanced Target Analyzer Experimental Core Analyzer Experimental Core Analyzer Heavy Armor Plating Graphene Brace Thermal Defense Suite Advanced Force Field Improved Hacking Suite Advanced System Shield Experimental System Shield Relay Coupler [Duelist] Advanced Dynamic Insulation System > --- WEAPON ----------- Quantum Rifle Enhanced Nova Cannon Heavy Machine Gun KE Penetrator Railgun > --- INVENTORY -------- Centrium Leg Centrium Leg Centrium Leg Hellfire Missile Launcher [Rating: 180] Favorites ----------- Power Improved Deuterium Engine Engine Improved Deuterium Engine Power Core Neutrino Core Reactor Particle Reactor Propulsion Armored Wheel Treads Advanced Heavy Siege Treads Leg Centrium Leg Wheel Armored Wheel Flight Unit VTOL Module Utility Advanced Targeting Computer Device Advanced Force Field Storage High-capacity Storage Unit Processor Advanced Targeting Computer Hackware Relay Coupler [Grunt] Protection Centrium Light Armor Plating Weapon Great Axe Energy Gun Gatling Laser Energy Cannon Enhanced Nova Cannon Ballistic Gun Enhanced Autogun Ballistic Cannon Hypervelocity Mass Driver Launcher Hellfire Missile Launcher Special Weapon Remote Datajack Slashing Weapon Great Axe Build | -11 -10 -9 -8 -8 -8 -8 -7 -7 -7 -7 -6 -6 -5 -5 -4 -4 -4 -4 -3 -3 -2 -2 -1 -1 ------- Run | Yrd Mat Mat Mat Gar Mat Gar Fac Gar Fac Gar Fac Gar Fac Gar Fac Gar Fac Gar Res Gar Res Gar Acc Com Slots Evolved 18 | . . 2 2 . . . 2 . . . 2 . 2 . 2 . . . 2 . 2 . 2 . Power 1 | . . . . . . . . . . . . . . . . . . . . . . . 1 . Propulsion 2 | . . . . . . . . . . . . . . . 1 . . . 1 . . . . . Utility 12 | . . 1 2 . . . 2 . . . 2 . 2 . 1 . . . . . 2 . . . Weapon 3 | . . 1 . . . . . . . . . . . . . . . . 1 . . . 1 . Parts Attached 261 | 9 1 7 31 13 . 3 4 15 6 3 12 14 8 12 . 15 6 30 . 21 6 22 11 12 Power 16 | 2 . 1 2 1 . 1 . 1 . . . 1 . 1 . . 1 2 . 1 . 1 . 1 Engine 6 | 2 . 1 1 1 . . . 1 . . . . . . . . . . . . . . . . Core 3 | . . . 1 . . 1 . . . . . 1 . . . . . . . . . . . . Reactor 7 | . . . . . . . . . . . . . . 1 . . 1 2 . 1 . 1 . 1 Propulsion 36 | 2 . 1 8 5 . 1 . . . . . . 1 . . . . 9 . 5 . 1 1 2 Treads 3 | . . . . . . . . . . . . . . . . . . 1 . 2 . . . . Leg 13 | . . . . . . . . . . . . . . . . . . 6 . 3 . 1 1 2 Wheel 19 | 2 . 1 8 5 . 1 . . . . . . 1 . . . . 1 . . . . . . Hover . | . . . . . . . . . . . . . . . . . . . . . . . . . Flight 1 | . . . . . . . . . . . . . . . . . . 1 . . . . . . Utility 155 | 2 1 2 9 3 . . 4 13 4 3 11 11 7 9 . 11 4 15 . 13 6 13 9 5 Device 15 | 1 . . 2 1 . . . . . . . 1 . . . 2 . . . 2 . 6 . . Storage 4 | 1 1 . 1 . . . . . . . . . . . . . . . . . . . . 1 Processor 12 | . . 1 3 1 . . . . . . 2 1 . . . . . . . 1 . . 1 2 Hackware 115 | . . . . . . . 4 12 4 3 9 8 7 8 . 9 4 15 . 10 6 7 8 1 Protection 9 | . . 1 3 1 . . . 1 . . . 1 . 1 . . . . . . . . . 1 Artifact . | . . . . . . . . . . . . . . . . . . . . . . . . . Weapon 54 | 3 . 3 12 4 . 1 . 1 2 . 1 2 . 2 . 4 1 4 . 2 . 7 1 4 Energy Gun 12 | 1 . . 5 1 . . . 1 1 . . 1 . 1 . . . . . . . . . 1 Energy Cannon 3 | . . . . . . . . . . . . . . . . . . 1 . . . 1 1 . Ballistic Gun 21 | 2 . 3 6 2 . . . . . . . . . . . 3 . . . . . 2 . 3 Ballistic Cannon 2 | . . . . . . . . . . . . . . . . . 1 1 . . . . . . Launcher 4 | . . . 1 . . . . . . . . 1 . . . 1 . . . . . 1 . . Special Weapon 8 | . . . . . . 1 . . . . 1 . . 1 . . . 1 . 2 . 2 . . Impact Weapon . | . . . . . . . . . . . . . . . . . . . . . . . . . Slashing Weapon 4 | . . . . 1 . . . . 1 . . . . . . . . 1 . . . 1 . . Piercing Weapon . | . . . . . . . . . . . . . . . . . . . . . . . . . Special Melee Weapon . | . . . . . . . . . . . . . . . . . . . . . . . . . Unidentified Prototypes 14 | . . . 3 . . . . . . . . 1 . . . . . . . . . 9 . 1 Corrupted Parts 2 | . . . . . . . . . . . . . . . . . . 2 . . . . . . System Corruption 4 | . . . . . . . . . . . . . . . . . . 4 . . . . . . Parts Lost 47 | . . . 5 4 . . . 2 1 . . . . 1 . 4 3 8 . 4 1 . 7 7 Power 4 | . . . 1 . . . . . . . . . . . . . 1 1 . . . . 1 . Propulsion 7 | . . . 2 1 . . . . . . . . . . . . . 2 . . . . 1 1 Utility 22 | . . . . 1 . . . 2 1 . . . . 1 . 4 2 1 . 3 1 . 2 4 Weapon 14 | . . . 2 2 . . . . . . . . . . . . . 4 . 1 . . 3 2 Highest Loss Streak 5 | . . . 1 1 . . . 1 1 . . . . 1 . 4 2 5 . 1 1 . 5 5 To Critical Strikes . | . . . . . . . . . . . . . . . . . . . . . . . . . Average Backups 16 | 2 9 12 15 19 20 19 19 18 19 19 16 17 14 16 18 18 16 17 15 17 16 16 18 6 Power . | . 1 1 . 1 1 . . . 1 1 1 1 1 1 1 1 . . . 1 1 1 1 . Propulsion 1 | 1 4 4 2 3 3 2 1 1 1 1 1 1 1 1 1 1 1 1 2 2 2 2 3 3 Utility 10 | . 1 3 3 6 12 13 16 14 15 14 11 12 10 11 13 13 12 12 11 11 11 11 11 2 Weapon 2 | . 1 3 8 7 3 2 2 2 1 1 2 1 2 2 3 2 2 1 1 1 . 1 1 1 Tool/Special . | . . . . . . . . . . . . . . . . . . . . . . . . . Unused Backups 45 | . . . 8 3 . 8 . 3 1 2 . 4 . . . 3 . 2 . 7 . 1 . 3 Power 5 | . . . . . . . . . . . . . . . . . . 1 . 4 . . . . Propulsion 7 | . . . . 2 . 1 . . . . . 1 . . . . . . . 2 . . . 1 Utility 27 | . . . 5 1 . 6 . 3 . 2 . 2 . . . 3 . 1 . 1 . 1 . 2 Weapon 5 | . . . 3 . . . . . 1 . . 1 . . . . . . . . . . . . Tool/Special 1 | . . . . . . 1 . . . . . . . . . . . . . . . . . . Average Slot Usage (%) 94 | . 100 99 99 99 100 100 99 96 99 99 98 98 91 92 89 88 88 93 80 84 84 92 90 72 Engine 2 | . 14 11 3 9 9 6 . 6 7 7 6 2 . . . . . . . . . . . . Core 1 | . . . 5 . . 2 7 . . . . 3 5 3 . . . . . . . . 1 . Reactor 1 | . . . . . . . . . . . . . . 1 5 5 5 4 4 4 4 4 4 6 Leg 3 | . . . . . . . . . . . . . . . . . . 10 9 9 13 13 12 10 Wheel 9 | . 28 22 17 18 18 18 15 15 15 15 13 13 6 5 5 5 5 . . . . . . . Device 4 | . 14 5 9 16 . . . . . . . 4 5 5 5 5 4 . . 1 7 6 6 10 Storage 6 | . 14 11 9 9 9 9 7 7 7 7 6 6 5 5 5 5 5 5 4 4 4 4 4 2 Processor 11 | . . 10 18 18 27 27 15 15 9 7 13 13 11 11 10 10 10 9 4 5 4 4 4 11 Hackware 28 | . . . . . . . 28 25 35 37 33 30 30 35 36 38 40 43 38 41 42 44 40 20 Protection 2 | . . 5 8 1 9 9 . 2 . . 4 2 5 3 5 2 1 2 4 1 . . . . Energy Gun 4 | . . . 2 19 . . . 3 10 15 9 6 5 5 5 . . . . . . . . 1 Ballistic Gun 5 | . 28 33 24 3 27 24 15 2 . . . . . . . 5 5 . . . . 3 4 5 Special Weapon 3 | . . . . . . . 6 6 6 4 5 5 5 4 5 4 4 4 4 3 4 4 5 . Slashing Weapon 3 | . . . . 4 . 2 . 6 5 2 3 6 5 5 5 4 3 2 . . . 2 4 . Peak Build Rating 180 | 7 8 14 35 40 40 41 45 50 49 50 62 68 76 88 85 108 95 119 114 135 133 154 174 180 Average Rating 76 | 5 7 12 27 36 40 39 44 46 48 48 56 62 72 78 85 90 90 99 114 118 129 144 160 142 On Entrance 68 | . 7 8 14 35 40 40 40 45 50 49 49 55 68 75 77 85 90 92 114 114 120 133 154 153 Naked Turns 86 | . . . . . . . . . . . . . . . . . . . . . . . . 86 Heaviest Build 126 | 14 29 38 63 68 67 67 56 66 62 62 69 75 75 82 80 100 105 102 87 103 105 117 126 126 Greatest Support 160 | 32 32 32 32 26 24 24 24 24 24 24 24 24 28 28 28 28 28 90 90 160 120 120 120 120 Greatest Overweight (x) 26 | . . 1 3 2 2 2 2 2 2 2 2 3 3 2 2 3 3 26 . 1 . . 1 1 Average Overweight (x) 1 | . . . 1 2 2 2 2 2 2 2 2 2 2 2 2 2 3 . . . . . . . Largest Inventory Capacity 20 | 8 15 15 20 20 20 20 20 20 20 20 20 20 20 20 20 20 20 20 20 20 20 20 20 20 Average Capacity 19 | 7 13 15 16 20 20 20 20 20 20 20 20 20 20 20 20 20 20 20 20 20 20 20 20 13 Most Carried 20 | 6 11 14 20 20 20 20 20 20 20 20 20 20 19 20 19 20 20 20 17 20 19 20 20 12 Average Carried 17 | 2 9 12 15 19 20 19 19 18 19 19 17 18 15 17 19 19 17 17 17 18 16 17 18 6 Final Capacity 20 | 8 15 15 20 20 20 20 20 20 20 20 20 20 20 20 20 20 20 20 20 20 20 20 20 5 Final Carried 20 | 6 11 13 20 20 20 20 20 20 20 20 13 20 13 20 19 20 15 17 17 20 14 20 12 4 Class Distribution -------------------- 35% | Commander-Mutant 13% | Botlord-Mutant 10% | Botlord-Tank 10% | Gunner 6% | Bothacker-Gunner 5% | Mutant 4% | Botlord-Gunner Dominant Class ---------------- Mutant | -10/Materials Gunner | -9/Materials Gunner | -8/Materials Gunner | -8/Garrison Bothacker-Gunner | -8/Materials Bothacker-Gunner | -8/Garrison Bothacker-Gunner | -7/Factory Commander-Mutant | -7/Garrison Commander-Mutant | -7/Factory Bothacker-Gunner | -7/Garrison Botlord-Gunner | -6/Factory Commander-Mutant | -6/Garrison Commander-Mutant | -5/Factory Commander-Mutant | -5/Garrison Commander-Mutant | -4/Factory Commander-Mutant | -4/Garrison Commander-Mutant | -4/Factory Botlord-Mutant | -4/Garrison Botlord-Tank | -3/Research Botlord-Mutant | -3/Garrison Botlord-Mutant | -2/Research Botlord-Tank | -2/Garrison Botlord-Tank | -1/Access Hacker-Mutant | -1/Command Resources | -11 -10 -9 -8 -8 -8 -8 -7 -7 -7 -7 -6 -6 -5 -5 -4 -4 -4 -4 -3 -3 -2 -2 -1 -1 ----------- Run | Yrd Mat Mat Mat Gar Mat Gar Fac Gar Fac Gar Fac Gar Fac Gar Fac Gar Fac Gar Res Gar Res Gar Acc Com Matter Collected 10237 | 289 117 282 1548 320 . 486 . 487 150 129 319 526 155 439 . 765 303 1174 . 521 250 659 1004 314 Remotely . | . . . . . . . . . . . . . . . . . . . . . . . . . Salvage Created 8163 | 168 157 355 1825 1366 . 382 27 . 82 167 26 329 84 342 . 591 98 417 . 305 156 124 655 507 Parts 450 | 10 15 20 94 81 . 22 2 . 8 4 . 16 4 20 . 40 6 36 . 12 8 12 26 14 Haulers Intercepted 1 | . . . 1 . . . . . . . . . . . . . . . . . . . . . Recyclers Shooed 1 | . . . . . . . . . . . . . 1 . . . . . . . . . . . Parts Field Recycled . | . . . . . . . . . . . . . . . . . . . . . . . . . Retrieved Matter . | . . . . . . . . . . . . . . . . . . . . . . . . . Parts Self-Destructed . | . . . . . . . . . . . . . . . . . . . . . . . . . Prevented . | . . . . . . . . . . . . . . . . . . . . . . . . . Kills | -11 -10 -9 -8 -8 -8 -8 -7 -7 -7 -7 -6 -6 -5 -5 -4 -4 -4 -4 -3 -3 -2 -2 -1 -1 ------- Run | Yrd Mat Mat Mat Gar Mat Gar Fac Gar Fac Gar Fac Gar Fac Gar Fac Gar Fac Gar Res Gar Res Gar Acc Com Combat Hostiles Destroyed 168 | . 7 7 38 34 . 8 1 . 1 5 . 6 2 7 . 10 1 9 . 2 7 6 9 8 Melee 4 | . . . . . . . . . . . . 2 . 1 . . . 1 . . . . . . Guns 126 | . 7 7 38 32 . 8 1 . 1 4 . 4 2 6 . 10 . 3 . . . . . 3 Cannons 12 | . . . . . . . . . . . . . . . . . 1 3 . 2 3 3 . . AOE 22 | . . . . . . . . . . . . . . . . . . 2 . . 4 3 8 5 Classes Destroyed 20 | 3 4 1 6 1 . 1 . . 1 . . . . 1 . 1 . . . . . . . 1 Worker 14 | 1 . . 7 . . . . . . . . . . . . . . . . . . . 4 2 Builder 3 | . . . . . . . . . 2 . . . . . . . . . . . . . 1 . Tunneler 3 | 3 . . . . . . . . . . . . . . . . . . . . . . . . Hauler 1 | . . . 1 . . . . . . . . . . . . . . . . . . . . . Recycler 3 | 1 . . 2 . . . . . . . . . . . . . . . . . . . . . Mechanic 1 | . . . . . . . . . . . . . . . . . . . . . . . . 1 Operator 4 | . 1 . 3 . . . . . . . . . . . . . . . . . . . . . Watcher 7 | . 1 2 1 . . 1 . . . . 1 . . . . 1 . . . . . . . . Swarmer 59 | . 6 . 1 18 . 1 1 . . 3 . . . 3 . 4 1 6 . . 6 6 3 . Cutter 1 | . . . . . . . . . . . . . . . . 1 . . . . . . . . Grunt 46 | . 1 4 20 5 . 2 . . . 2 . 2 . . . . 1 . . . . . 4 5 Brawler 7 | . . . 2 . . 1 . . . . . 1 . . . 1 . . . . . . 2 . Duelist 2 | . . . 2 . . . . . . . . . . . . . . . . . . . . . Sentry 23 | . . 3 8 8 . 1 . . . . . . . . . . . 2 . . . . . 1 Specialist 6 | . . . 2 . . . . . . . . . . 1 . 3 . . . . . . . . Hunter 8 | . . . 2 2 . . . . . . . . 1 . . . . 1 . 1 . . . 1 Programmer 21 | . . . . . . 3 . . 1 . . 3 1 2 . 1 . 2 . 2 1 . 4 1 Heavy 1 | . . . 1 . . . . . . . . . . . . . . . . . . . . . Behemoth 1 | . . . . 1 . . . . . . . . . . . . . . . . . . . . Executioner 1 | . . . . . . . . . . . . . . 1 . . . . . . . . . . Best Kill Streak 7 | 3 4 3 6 7 . 3 1 . 2 3 1 3 2 3 . 4 1 3 . 2 4 4 6 5 Combat Bots Only 7 | . 3 3 5 7 . 3 1 . 1 3 . 3 2 3 . 4 1 3 . 2 4 4 3 5 Max Kills in Single Turn 5 | 1 1 1 2 3 . 1 1 . 1 1 1 1 1 1 . 2 1 3 . 1 3 2 5 3 Gunslinging 2 | . . . . 2 . . . . . . . . . . . 1 . . . . . . . . Exploded 3 | . . . . . . . . . . . . . . . . . . 2 . . 3 2 3 3 Melee 1 | . . . . . . . . . . . . 1 . 1 . . . 1 . . . . . . Uniques/NPCs Destroyed . | . . . . . . . . . . . . . . . . . . . . . . . . . Combat | -11 -10 -9 -8 -8 -8 -8 -7 -7 -7 -7 -6 -6 -5 -5 -4 -4 -4 -4 -3 -3 -2 -2 -1 -1 -------- Run | Yrd Mat Mat Mat Gar Mat Gar Fac Gar Fac Gar Fac Gar Fac Gar Fac Gar Fac Gar Res Gar Res Gar Acc Com Hostile Shots Fired 1114 | . 25 28 96 80 . 33 16 49 5 12 26 6 10 19 . 47 10 148 . 46 15 44 147 252 Missed 335 | . 5 3 24 30 . 8 9 11 1 2 16 2 4 4 . 17 2 51 . 12 8 17 44 65 Hits 779 | . 20 25 72 50 . 25 7 38 4 10 10 4 6 15 . 30 8 97 . 34 7 27 103 187 Melee 11 | . . . . . . . . . . . . . . . . 3 . 8 . . . . . . Projectile 768 | . 20 25 72 50 . 25 7 38 4 10 10 4 6 15 . 27 8 89 . 34 7 27 103 187 AOE 6 | . . . . . . . . . . . . . . . . 2 . 2 . . . . 2 . Critical Strikes 44 | . . 2 2 1 . 1 . . . 1 . . 1 3 . 6 1 7 . 2 2 2 8 5 Actively Blocked 8 | . . . . . . . . . . . . . . . . . . . . 1 1 1 2 3 Part Disruptions 3 | . . . . . . . . . . . . . . . . 1 . . . 1 . . . 1 Actively Blocked 1 | . . . . . . . . . . . . . . . . . . . . . . . . 1 Damage Taken 14161 | . 158 332 1304 791 . 378 42 405 114 181 265 118 54 315 . 499 237 1765 . 1075 75 530 2342 3181 Core 2735 | . 65 73 201 175 . 31 . 28 5 34 11 . 8 110 . 100 . 227 . 22 19 22 329 1275 Absorbed by Shields 2542 | . . . . . . . . . . . . 56 57 204 . 395 121 249 . 47 78 152 459 724 Regen/Repaired (Parts) 444 | . . . . . . . . 78 27 61 96 77 . 11 . 80 . . . . . . 14 . Core Remaining (%) 82 | 100 74 81 . . . 26 . . . 90 . 98 . 88 . . . 71 . 98 . 97 . . Volleys Fired 943 | 14 25 26 92 40 . 33 7 33 17 28 26 85 21 53 1 63 20 77 3 61 36 71 75 36 Largest 4 | 2 2 3 3 3 . 3 3 1 2 2 2 2 1 2 1 3 2 2 1 2 1 2 2 4 Hottest 249 | 40 40 66 240 240 . 75 75 75 150 150 150 150 80 174 7 120 96 120 120 176 120 150 158 249 Shots Fired 1468 | 28 50 78 265 108 . 95 11 33 22 43 28 90 21 70 1 90 26 88 3 67 36 73 85 57 Gun 872 | 28 50 78 261 108 . 95 6 2 10 33 5 23 6 37 . 51 6 10 . . . 2 15 46 Cannon 168 | . . . . . . . . . . . . . . . . . 4 39 3 44 7 49 17 5 Launcher 24 | . . . 4 . . . . . . . . 1 . . . 1 . 1 . . 2 3 6 6 Special 404 | . . . . . . . 5 31 12 10 23 66 15 33 1 38 16 38 . 23 27 19 47 . Kinetic 642 | 28 50 78 231 . . 95 6 1 . . . . . . . 50 10 30 . 6 . 2 15 40 Thermal 398 | . . . 30 108 . . . 1 10 33 5 23 6 37 . 1 . 19 3 38 7 49 17 11 Explosive 24 | . . . 4 . . . . . . . . 1 . . . 1 . 1 . . 2 3 6 6 Electromagnetic . | . . . . . . . . . . . . . . . . . . . . . . . . . Robot Hit Streak 49 | 7 5 26 24 49 . 16 2 21 27 7 7 17 14 19 1 17 7 7 . 16 9 6 7 4 Robot Miss Streak 7 | 2 7 3 7 4 . 2 3 1 3 2 2 2 1 3 . 3 5 4 . 2 3 2 4 5 Penetration Max 3 | . . . 1 . . . . . . . . . . . . 2 1 3 . . . . . 2 Secondary Targets 23 | . 3 2 2 9 . 4 1 . . . . . . 1 . 1 . . . . . . . . Max Gunslinging Chain 2 | . 1 1 1 2 . 1 1 . . . . . . 1 . 1 . . . . . . . . Shots Hit Robots 974 | 17 20 52 195 106 . 72 6 29 19 27 19 60 18 57 1 62 15 40 . 34 26 27 46 26 Core Hits 532 | 10 13 16 232 75 . 20 1 . 5 4 1 9 6 23 . 24 6 16 . 5 10 7 22 27 Critical Kills 23 | . . . . . . 3 . . . . . . . . . 8 2 7 . 1 . . 1 1 Critical Parts Destroyed 18 | . 1 . . . . 3 . . . . . . . . . 6 . 5 . 1 . . 1 1 Critical Strikes 53 | . 1 . . 3 . 6 . . 1 4 1 . . . . 16 2 13 . 2 . . 2 2 Burn 6 | . . . . . . . . . 1 4 1 . . . . . . . . . . . . . Meltdown 1 | . . . . . . . . . . . . . . . . . . . . . . . 1 . Destroy 43 | . 1 . . . . 6 . . . . . . . . . 16 2 13 . 2 . . 1 2 Sever 3 | . . . . 3 . . . . . . . . . . . . . . . . . . . . Melee Attacks 254 | . . . . 52 . 10 . 20 5 5 2 28 3 34 3 60 6 20 . . . 1 5 . Impact . | . . . . . . . . . . . . . . . . . . . . . . . . . Slashing 254 | . . . . 52 . 10 . 20 5 5 2 28 3 34 3 60 6 20 . . . 1 5 . Piercing . | . . . . . . . . . . . . . . . . . . . . . . . . . Sneak Attacks 11 | . . . . . . 1 . . 3 . . 2 1 . . 1 . 1 . . . . 2 . Combat Hostiles 4 | . . . . . . . . . . . . 2 1 . . . . 1 . . . . . . Follow-up Attacks . | . . . . . . . . . . . . . . . . . . . . . . . . . Damage Inflicted 21710 | 183 262 664 3793 3317 . 1382 49 22 351 441 67 573 263 951 . 503 82 865 . 780 1073 1153 2800 2136 Guns 11909 | 183 262 664 3793 1991 . 1311 49 22 131 441 67 325 181 910 . 393 65 69 . . . 42 306 704 Cannons 2191 | . . . . . . . . . . . . . . . . . 17 273 . 780 222 568 249 82 Explosions 5235 | . . . . . . . . . . . . 71 . . . 23 . 385 . . 851 543 2045 1317 Melee 2342 | . . . . 1326 . 71 . . 220 . . 177 82 41 . 87 . 138 . . . . 200 . Ramming 33 | . . . . . . . . . . . . . . . . . . . . . . . . 33 Kinetic 7591 | 183 262 664 3259 . . 1311 49 . . . . . . . . 393 82 301 . 65 . 42 306 674 Thermal 6509 | . . . 534 1991 . . . 22 131 441 67 325 181 910 . . . 41 . 715 222 568 249 112 Explosive 5235 | . . . . . . . . . . . . 71 . . . 23 . 385 . . 851 543 2045 1317 Electromagnetic . | . . . . . . . . . . . . . . . . . . . . . . . . . Impact . | . . . . . . . . . . . . . . . . . . . . . . . . . Slashing 2342 | . . . . 1326 . 71 . . 220 . . 177 82 41 . 87 . 138 . . . . 200 . Piercing . | . . . . . . . . . . . . . . . . . . . . . . . . . Highest Corruption 26 | . . . . . . 5 . . . . . . 2 3 . 17 17 26 . 1 . 1 9 19 Average Corruption 10 | . . . . . . 4 . . . . . . 1 2 . 14 17 23 . 1 . 1 5 10 Corruption Purged . | . . . . . . . . . . . . . . . . . . . . . . . . . Corruption Blocked . | . . . . . . . . . . . . . . . . . . . . . . . . . Effects 256 | . . . . . . 8 . . . . . . 2 26 . 29 29 92 . 10 . 6 26 28 Message Errors 59 | . . . . . . 1 . . . . . . 2 7 . 6 6 24 . . . 1 7 5 Matter Fused 51 | . . . . . . 1 . . . . . . . 4 . 8 6 14 . 4 . 1 8 5 Heat Flow Errors 28 | . . . . . . 3 . . . . . . . 3 . 3 5 9 . 1 . 1 . 3 Energy Discharges 40 | . . . . . . 2 . . . . . . . 3 . 6 4 16 . 2 . 1 3 3 Parts Rejected 3 | . . . . . . . . . . . . . . . . . 1 . . . . . . 2 Parts Fused 2 | . . . . . . . . . . . . . . . . . . 1 . . . . . 1 Data Loss (minor) 28 | . . . . . . . . . . . . . . 1 . 1 4 12 . 2 . 1 3 4 Data Loss (major) 14 | . . . . . . 1 . . . . . . . 2 . 2 . 4 . 1 . . 3 1 Misfires 12 | . . . . . . . . . . . . . . 2 . 1 2 6 . . . . . 1 Alerts 8 | . . . . . . . . . . . . . . 3 . 1 1 . . . . 1 2 . Weapon Failures 11 | . . . . . . . . . . . . . . 1 . 1 . 6 . . . . . 3 Overload Shots . | . . . . . . . . . . . . . . . . . . . . . . . . . Overflow Damage 485 | . . . . 29 . . . . 20 . . . . . . . . 171 . 10 102 58 62 33 Projectiles 32 | . . . . . . . . . . . . . . . . . . . . 10 10 12 . . Explosions 387 | . . . . . . . . . . . . . . . . . . 154 . . 92 46 62 33 Melee 66 | . . . . 29 . . . . 20 . . . . . . . . 17 . . . . . . Knockbacks 3 | . . . . . . . . . . . . . . . . . . 3 . . . . . . Impact . | . . . . . . . . . . . . . . . . . . . . . . . . . Kinetic 2 | . . . . . . . . . . . . . . . . . . 2 . . . . . . Secondary 1 | . . . . . . . . . . . . . . . . . . 1 . . . . . . Self-Inflicted Damage 307 | . . . . . . . . . . . . . . . . 45 . . . 27 . . 34 201 Shots 5 | . . . . . . . . . . . . . . . . 1 . . . 1 . . 1 2 Rammed 14 | . . . . . . . . . . . . . . . . . . . . . . . . 14 Targets Rammed 14 | . . . . . . . . . . . . . . . . . . . . . . . . 14 Kicked . | . . . . . . . . . . . . . . . . . . . . . . . . . Crushed . | . . . . . . . . . . . . . . . . . . . . . . . . . Highest Temperature 501 | . . 95 248 210 . 305 40 24 150 249 132 330 80 285 . 247 255 236 100 294 223 236 228 501 Average Temperature 84 | . . 28 47 70 . 99 22 13 67 91 60 92 35 126 . 50 93 59 46 86 107 59 86 207 Received Heat Transfer 1352 | . . 159 468 87 . 90 6 129 12 81 24 4 . 8 . 20 17 75 . 90 13 12 17 40 Effects 7 | . . . . . . . . . . . . . . 1 . . . . . 1 . . . 5 Shutdowns 3 | . . . . . . . . . . . . . . . . . . . . . . . . 3 Energy Bleed 2 | . . . . . . . . . . . . . . 1 . . . . . . . . . 1 Interference 1 | . . . . . . . . . . . . . . . . . . . . 1 . . . . Damage (minor) 1 | . . . . . . . . . . . . . . . . . . . . . . . . 1 Siege Activations . | . . . . . . . . . . . . . . . . . . . . . . . . . Martial Activations . | . . . . . . . . . . . . . . . . . . . . . . . . . Shielding Activations . | . . . . . . . . . . . . . . . . . . . . . . . . . Robots Disrupted . | . . . . . . . . . . . . . . . . . . . . . . . . . Combat Hostiles . | . . . . . . . . . . . . . . . . . . . . . . . . . Robots Corrupted . | . . . . . . . . . . . . . . . . . . . . . . . . . Combat Hostiles . | . . . . . . . . . . . . . . . . . . . . . . . . . Parts Fried . | . . . . . . . . . . . . . . . . . . . . . . . . . Impact Corruptions . | . . . . . . . . . . . . . . . . . . . . . . . . . Robots Melted 5 | . . . . 2 . . . . . 1 1 . . . . . . . . . . . 1 . Combat Hostiles 4 | . . . . 2 . . . . . 1 . . . . . . . . . . . . 1 . Parts Melted 30 | . . . 3 8 . . . . 3 4 2 2 1 4 . . . . . . . . 3 . Heat Transferred 11632 | . . . 1223 4184 . . . 50 350 1400 250 548 350 1723 . . . 37 . 592 185 444 185 111 Parts Sabotaged . | . . . . . . . . . . . . . . . . . . . . . . . . . Parts Stolen . | . . . . . . . . . . . . . . . . . . . . . . . . . Parts Stripped . | . . . . . . . . . . . . . . . . . . . . . . . . . Power Chain Reactions . | . . . . . . . . . . . . . . . . . . . . . . . . . Alert | -11 -10 -9 -8 -8 -8 -8 -7 -7 -7 -7 -6 -6 -5 -5 -4 -4 -4 -4 -3 -3 -2 -2 -1 -1 ------- Run | Yrd Mat Mat Mat Gar Mat Gar Fac Gar Fac Gar Fac Gar Fac Gar Fac Gar Fac Gar Res Gar Res Gar Acc Com Maximum Alert Level 5 | . . . 2 5 3 4 2 3 2 3 2 5 4 5 3 5 3 5 3 4 3 3 4 3 Low Security (%) 11 | 100 100 100 58 . . . . 5 14 . 29 1 . . . . . . . . 25 . . . Level 1 11 | . . . 36 9 . . 15 14 58 10 21 18 . . . . . . . . 68 12 1 . Level 2 22 | . . . 4 27 . 23 84 36 27 26 48 11 . . . . . 9 . 2 2 34 84 83 Level 3 24 | . . . . 20 100 46 . 44 . 62 . 17 70 9 100 19 100 36 100 27 4 53 5 16 Level 4 23 | . . . . 27 . 30 . . . . . 35 29 71 . 47 . 44 . 69 . . 9 . Level 5 6 | . . . . 14 . . . . . . . 14 . 19 . 33 . 8 . . . . . . High Security . | . . . . . . . . . . . . . . . . . . . . . . . . . Max Security . | . . . . . . . . . . . . . . . . . . . . . . . . . Peak Influence 1917 | 10 97 80 500 1631 794 1207 633 796 455 1069 566 1664 1352 1917 1005 1876 1006 1619 910 1502 805 925 1229 735 Initial 1005 | . . 4 19 323 794 509 633 167 417 314 560 107 873 946 1005 679 984 626 910 664 805 315 518 703 Average 814 | 2 43 24 185 1005 791 925 480 591 327 754 332 1039 1041 1428 987 1415 908 1191 900 1161 304 712 577 643 Influence Increases 19013 | 25 182 207 1082 1348 . 698 86 779 646 805 585 1677 1254 1241 6 1357 729 1753 6 1288 496 810 1741 212 Destroy 0b10 Robot/C 7592 | . 140 140 760 760 . 480 60 230 195 330 195 600 405 450 . 465 255 555 . 420 204 252 600 96 Destroy 0b10 Robot/NC 267 | 25 10 10 70 20 . 5 . . 20 . 20 . 40 . . 4 . 4 . 3 6 . 21 9 Destroy Leader 1006 | . 32 44 214 50 . 40 10 20 58 32 56 16 82 32 . 16 64 24 . 42 30 36 96 12 Allied During Kill 5647 | . . . . 28 . 56 14 228 238 307 190 615 527 482 . 485 319 583 . 465 167 258 685 . Successful Hack 215 | . . 13 12 . . 14 . 20 14 . 46 5 . 8 . . 9 . . . 13 8 53 . Disable Machine 342 | . . . . 15 . . . . 108 . 60 . 12 . . 12 12 24 . 9 18 18 54 . Anti-Garrison Action 2134 | . . . . 350 . 50 . 201 . 114 . 265 . 151 . 227 . 416 . 240 . 120 . . Destroy Structure 1693 | . . . 11 80 . 53 2 80 13 22 18 164 188 118 6 148 46 135 6 109 58 118 232 86 Partial Spotted 9 | . . . . . . . . . . . . . . . . . . . . . . . . 9 Lose Combat Pursuer 108 | . . . 15 45 . . . . . . . 12 . . . . 24 12 . . . . . . Influence Decreases 18462 | 25 170 172 632 214 847 275 1054 222 993 185 1500 167 1566 676 952 452 1710 1029 739 742 1507 366 1507 760 Entered New Map 9007 | . . 8 28 174 837 275 574 72 379 135 509 47 791 406 912 292 892 269 709 222 627 106 347 396 Time Decay 3655 | 25 170 164 554 . 10 . 180 . 404 . 506 . 310 . 40 . 318 . 30 . 160 . 490 294 Lost Part 470 | . . . 50 40 . . . 20 10 . . . . 10 . 40 30 80 . 40 10 . 70 70 Lost Ally 3330 | . . . . . . . . 130 200 50 110 120 190 260 . 120 170 680 . 480 110 260 450 . Purge Threat 2000 | . . . . . . . 300 . . . 375 . 275 . . . 300 . . . 600 . 150 . Squads Dispatched 45 | . 1 1 8 . . . 2 . 4 . 5 . 4 . . . 4 . . . 1 . 13 2 Investigation 3 | . . . . . . . . . . . 1 . . . . . . . . . . . 2 . Extermination 12 | . . . . . . . 1 . 2 . 2 . 1 . . . 1 . . . . . 4 1 Reinforcement 19 | . 1 1 6 . . . 1 . . . 2 . 1 . . . 3 . . . 1 . 2 1 Assault 7 | . . . . . . . . . 1 . . . 2 . . . . . . . . . 4 . Garrison 4 | . . . 2 . . . . . 1 . . . . . . . . . . . . . 1 . Intercept . | . . . . . . . . . . . . . . . . . . . . . . . . . Searches Triggered . | . . . . . . . . . . . . . . . . . . . . . . . . . Construction Impeded . | . . . . . . . . . . . . . . . . . . . . . . . . . Haulers Reinforced . | . . . . . . . . . . . . . . . . . . . . . . . . . Active Scanning Responses . | . . . . . . . . . . . . . . . . . . . . . . . . . Cargo Convoy Interrupts . | . . . . . . . . . . . . . . . . . . . . . . . . . Stealth | -11 -10 -9 -8 -8 -8 -8 -7 -7 -7 -7 -6 -6 -5 -5 -4 -4 -4 -4 -3 -3 -2 -2 -1 -1 --------- Run | Yrd Mat Mat Mat Gar Mat Gar Fac Gar Fac Gar Fac Gar Fac Gar Fac Gar Fac Gar Res Gar Res Gar Acc Com Distress Signals 9 | . 1 1 2 . . . . . . . 1 . . . . . . . . . . . 2 2 Communications Jammed 663 | . . . . . . . . . 44 . 55 . 46 . . 30 19 90 . . 184 . 195 . Distress Signals 657 | . . . . . . . . . 44 . 54 . 45 . . 30 19 90 . . 181 . 194 . Times Spotted 648 | . 12 12 53 40 . 22 5 35 14 20 17 39 20 39 . 46 19 71 . 38 29 30 65 22 Peak Tracking Total 16 | . 5 3 5 7 . 5 3 4 3 3 3 4 4 5 . 10 4 16 . 4 5 6 7 12 Tactical Retreats 7 | . . . 1 3 . . . . . . . 1 . . . . 1 1 . . . . . . Traps | -11 -10 -9 -8 -8 -8 -8 -7 -7 -7 -7 -6 -6 -5 -5 -4 -4 -4 -4 -3 -3 -2 -2 -1 -1 ------- Run | Yrd Mat Mat Mat Gar Mat Gar Fac Gar Fac Gar Fac Gar Fac Gar Fac Gar Fac Gar Res Gar Res Gar Acc Com Traps Triggered 53 | . 1 . 1 10 . 2 . 11 . 1 . 10 . 4 . 2 1 4 . 2 1 2 1 . Indirectly . | . . . . . . . . . . . . . . . . . . . . . . . . . Trap Hack Attempts . | . . . . . . . . . . . . . . . . . . . . . . . . . Triggered . | . . . . . . . . . . . . . . . . . . . . . . . . . Disarmed . | . . . . . . . . . . . . . . . . . . . . . . . . . Reprogrammed . | . . . . . . . . . . . . . . . . . . . . . . . . . Reused . | . . . . . . . . . . . . . . . . . . . . . . . . . Traps Extracted . | . . . . . . . . . . . . . . . . . . . . . . . . . Installed . | . . . . . . . . . . . . . . . . . . . . . . . . . Triggered . | . . . . . . . . . . . . . . . . . . . . . . . . . Machines | -11 -10 -9 -8 -8 -8 -8 -7 -7 -7 -7 -6 -6 -5 -5 -4 -4 -4 -4 -3 -3 -2 -2 -1 -1 ---------- Run | Yrd Mat Mat Mat Gar Mat Gar Fac Gar Fac Gar Fac Gar Fac Gar Fac Gar Fac Gar Res Gar Res Gar Acc Com Machines Disabled 75 | . . . . 5 . 1 . 3 9 3 5 6 1 4 . 5 1 8 . 8 2 8 6 . Max in Single Turn 2 | . . . . 1 . 1 . 1 . 1 . 1 . 1 . 1 . 1 . 2 1 1 1 . Garrison Access 3 | . . . . . . . . . 1 . 1 . . . . . . . . . . . 1 . Garrison Relay 35 | . . . . 3 . 1 . 3 . 3 . 5 . 2 . 4 . 5 . 5 . 4 . . Phase Generator 2 | . . . . . . . . . . . . . . . . . . . . 1 . . . 1 Machines Repaired . | . . . . . . . . . . . . . . . . . . . . . . . . . Machines Dismantled . | . . . . . . . . . . . . . . . . . . . . . . . . . Machines Sabotaged . | . . . . . . . . . . . . . . . . . . . . . . . . . Overloaded Fab Kills . | . . . . . . . . . . . . . . . . . . . . . . . . . Hacking | -11 -10 -9 -8 -8 -8 -8 -7 -7 -7 -7 -6 -6 -5 -5 -4 -4 -4 -4 -3 -3 -2 -2 -1 -1 --------- Run | Yrd Mat Mat Mat Gar Mat Gar Fac Gar Fac Gar Fac Gar Fac Gar Fac Gar Fac Gar Res Gar Res Gar Acc Com Machines Accessed 79 | . 2 2 6 3 1 2 2 3 6 1 10 2 2 2 1 4 6 5 1 3 5 1 8 1 Terminals 59 | . 2 2 5 3 . 2 1 3 4 1 6 2 . 2 . 4 4 5 . 3 3 1 5 1 Fabricators 7 | . . . . . . . . . . . 2 . 1 . . . 1 . . . 1 . 2 . Repair Stations . | . . . . . . . . . . . . . . . . . . . . . . . . . Recycling Units . | . . . . . . . . . . . . . . . . . . . . . . . . . Scanalyzers . | . . . . . . . . . . . . . . . . . . . . . . . . . Garrison Access 13 | . . . 1 . 1 . 1 . 2 . 2 . 1 . 1 . 1 . 1 . 1 . 1 . Total Hacks 163 | . 5 3 14 8 1 5 5 3 10 2 22 3 7 2 1 6 15 8 1 3 13 1 21 4 Successful 80 | . 1 3 5 2 1 1 3 3 4 1 16 2 7 2 1 4 6 1 1 1 5 1 9 . Failed 83 | . 4 . 9 6 . 4 2 . 6 1 6 1 . . . 2 9 7 . 2 8 . 12 4 Catastrophic 23 | . . . 1 2 . 1 1 . 3 . 2 . . . . . 1 4 . 2 1 . 4 1 Database Lockouts . | . . . . . . . . . . . . . . . . . . . . . . . . . Manual 55 | . 5 3 5 . . . 4 . 8 . 7 . . . . . 12 . . . 4 . 7 . Terminals 124 | . 5 3 13 8 . 5 4 3 8 2 10 3 . 2 . 6 13 8 . 3 9 1 14 4 Fabricators 26 | . . . . . . . . . . . 10 . 6 . . . 1 . . . 3 . 6 . Repair Stations . | . . . . . . . . . . . . . . . . . . . . . . . . . Recycling Units . | . . . . . . . . . . . . . . . . . . . . . . . . . Scanalyzers . | . . . . . . . . . . . . . . . . . . . . . . . . . Garrison Access 13 | . . . 1 . 1 . 1 . 2 . 2 . 1 . 1 . 1 . 1 . 1 . 1 . Terminal Hacks 30 | . . 1 3 2 . 1 1 3 . 1 2 2 . 2 . 4 2 1 . 1 1 1 2 . Robot Schematic 2 | . . . . . . . . . . . 2 . . . . . . . . . . . . . Open Door 3 | . . . . . . . . . . . . 1 . 1 . 1 . . . . . . . . Branch Access Points 3 | . . 1 1 . . . . . . . . . . . . . . . . . . . 1 . Emergency Access Points 7 | . . . . 1 . . . 1 . . . 1 . 1 . 1 . 1 . 1 . . . . Alert Level 1 | . . . 1 . . . . . . . . . . . . . . . . . . . . . Unreport Threat 5 | . . . . . . . 1 . . . . . . . . . 2 . . . 1 . 1 . Locate Traps 1 | . . . 1 . . . . . . . . . . . . . . . . . . . . . Garrison Registry 4 | . . . . . . 1 . 1 . 1 . . . . . . . . . . . 1 . . Patrol Navigation 3 | . . . . 1 . . . 1 . . . . . . . 1 . . . . . . . . Security Stations 1 | . . . . . . . . . . . . . . . . 1 . . . . . . . . Fabricator Hacks 20 | . . . . . . . . . . . 10 . 6 . . . . . . . 1 . 3 . Load Schematic 11 | . . . . . . . . . . . 5 . 3 . . . . . . . 1 . 2 . Build 9 | . . . . . . . . . . . 5 . 3 . . . . . . . . . 1 . Repair Station Hacks . | . . . . . . . . . . . . . . . . . . . . . . . . . Recycling Unit Hacks . | . . . . . . . . . . . . . . . . . . . . . . . . . Scanalyzer . | . . . . . . . . . . . . . . . . . . . . . . . . . Garrison Access Hacks 13 | . . . 1 . 1 . 1 . 2 . 2 . 1 . 1 . 1 . 1 . 1 . 1 . Unlock Access 10 | . . . 1 . 1 . 1 . 1 . 1 . 1 . 1 . 1 . 1 . 1 . . . Seal Access 3 | . . . . . . . . . 1 . 1 . . . . . . . . . . . 1 . Unauthorized Hacks 17 | . 1 2 1 . . . 1 . 2 . 2 . . . . . 3 . . . 2 . 3 . Terminals 17 | . 1 2 1 . . . 1 . 2 . 2 . . . . . 3 . . . 2 . 3 . Botnet 15 | . 1 2 1 . . . 1 . 2 . 2 . . . . . 2 . . . 2 . 2 . Operators 2 | . . . . . . . . . . . . . . . . . 1 . . . . . 1 . Fabricators . | . . . . . . . . . . . . . . . . . . . . . . . . . Repair Stations . | . . . . . . . . . . . . . . . . . . . . . . . . . Recycling Units . | . . . . . . . . . . . . . . . . . . . . . . . . . Scanalyzers . | . . . . . . . . . . . . . . . . . . . . . . . . . Garrison Access . | . . . . . . . . . . . . . . . . . . . . . . . . . Data Cores Recovered . | . . . . . . . . . . . . . . . . . . . . . . . . . Used . | . . . . . . . . . . . . . . . . . . . . . . . . . Hacking Detections 52 | . 1 . 6 3 . 2 1 . 4 1 6 . 1 . . 2 6 5 . 2 4 . 7 1 Full Trace Events 8 | . . . 1 2 . . . . . . 1 . . . . . . 2 . . . . 2 . Feedback Events . | . . . . . . . . . . . . . . . . . . . . . . . . . Feedback Blocked . | . . . . . . . . . . . . . . . . . . . . . . . . . Robot Schematics Acquired 2 | . . . . . . . . . . . 2 . . . . . . . . . . . . . Robots Built 18 | . . . . . . . . . . . 10 . 6 . . . . . . . . . 2 . Authchips 8 | . . . . . . . . . . . 5 . 3 . . . . . . . . . . . Time 1153 | . . . . . . . . . . . 845 . 252 . . . . . . . . . 56 . Total Robot Build Rating 108 | . . . . . . . . . . . 60 . 36 . . . . . . . . . 12 . Part Schematics Acquired . | . . . . . . . . . . . . . . . . . . . . . . . . . Parts Built . | . . . . . . . . . . . . . . . . . . . . . . . . . Authchips . | . . . . . . . . . . . . . . . . . . . . . . . . . Time . | . . . . . . . . . . . . . . . . . . . . . . . . . Total Part Build Rating . | . . . . . . . . . . . . . . . . . . . . . . . . . Parts Repaired . | . . . . . . . . . . . . . . . . . . . . . . . . . Time . | . . . . . . . . . . . . . . . . . . . . . . . . . Parts Recycled . | . . . . . . . . . . . . . . . . . . . . . . . . . Recycled Matter . | . . . . . . . . . . . . . . . . . . . . . . . . . Retrieved Matter . | . . . . . . . . . . . . . . . . . . . . . . . . . Retrieved Components . | . . . . . . . . . . . . . . . . . . . . . . . . . Parts Scanalyzed . | . . . . . . . . . . . . . . . . . . . . . . . . . Part Schematics Acquired . | . . . . . . . . . . . . . . . . . . . . . . . . . Parts Damaged . | . . . . . . . . . . . . . . . . . . . . . . . . . Bothacking | -11 -10 -9 -8 -8 -8 -8 -7 -7 -7 -7 -6 -6 -5 -5 -4 -4 -4 -4 -3 -3 -2 -2 -1 -1 ------------ Run | Yrd Mat Mat Mat Gar Mat Gar Fac Gar Fac Gar Fac Gar Fac Gar Fac Gar Fac Gar Res Gar Res Gar Acc Com Used RIF Installer 11 | . . . . 1 . 1 . 1 . 1 . 1 . 1 . 1 . 2 . 1 . 1 . . Code Merge 1 | . . . . . . . . . . . . . . . . . . . . 1 . . . . Command Fork 2 | . . . . . . . . . . . . . . 1 . 1 . . . . . . . . Threat Obfuscator 2 | . . . . . . . . 1 . . . . . . . . . 1 . . . . . . Signal Jammer 1 | . . . . . . 1 . . . . . . . . . . . . . . . . . . Zone Cloak 1 | . . . . . . . . . . 1 . . . . . . . . . . . . . . Watcher Feeds 1 | . . . . . . . . . . . . 1 . . . . . . . . . . . . Patrol Navigation 1 | . . . . . . . . . . . . . . . . . . . . . . 1 . . Program Shield 1 | . . . . . . . . . . . . . . . . . . 1 . . . . . . Robots Hacked 189 | . . . . . . . 3 23 8 3 9 16 7 9 1 14 9 25 . 15 13 9 25 . Non-combat 27 | . . . . . . . 1 1 3 . 4 . 3 . 1 . 4 . . . 4 . 6 . Combat 162 | . . . . . . . 2 22 5 3 5 16 4 9 . 14 5 25 . 15 9 9 19 . Robot Hacks Applied 210 | . . . . . . . 4 23 9 3 15 16 10 9 1 14 13 25 . 15 18 9 26 . parse_system 4 | . . . . . . . 1 . . . 1 1 . . . . . . . . . . 1 . no_distress 1 | . . . . . . . . . 1 . . . . . . . . . . . . . . . ignore_repairs 1 | . . . . . . . . . . . . . . . . . 1 . . . . . . . map_walls 2 | . . . . . . . . . . . 1 . . . . . . . . . . . 1 . find_fabricator 3 | . . . . . . . . . 1 . 1 . . . . . 1 . . . . . . . drop_inventory 3 | . . . . . . . . . . . 1 . . . . . 1 . . . 1 . . . purge_threat 10 | . . . . . . . 1 . . . 3 . 2 . . . . . . . 4 . . . mark_security 1 | . . . . . . . . . . . . . 1 . . . . . . . . . . . find_garrison 8 | . . . . . . . . . 1 . 2 . 1 . . . 2 . . . 1 . 1 . reboot_system 10 | . . . . . . . . . 1 . . 1 . . . . . 3 . 2 2 1 . . overwrite_iff 11 | . . . . . . . . . . . . 2 . . . . . 3 . . 2 . 4 . formatsys_low 11 | . . . . . . . 1 1 1 . 2 . 2 . 1 . 1 . . . 1 . 1 . formatsys_high 145 | . . . . . . . 1 22 4 3 4 12 4 9 . 14 7 19 . 13 7 8 18 . Relay Couplers Released 143 | . . . . 12 . 3 . 13 . 13 . 22 . 6 . 17 . 20 . 21 . 16 . . Machine Destruction 137 | . . . . 12 . 3 . 13 . 13 . 19 . 6 . 14 . 20 . 21 . 16 . . Programmers 6 | . . . . . . . . . . . . 3 . . . 3 . . . . . . . . Attached 102 | . . . . . . . 3 12 3 3 4 8 4 8 . 9 4 15 . 10 5 7 7 . Fabnet Peak Effective % . | . . . . . . . . . . . . . . . . . . . . . . . . . Robots Rewired 26 | . . . . . . . . . . . . 13 . 6 . 6 . . . . . 1 . . Allies Hacked 10 | . . . . . . . . . . 1 . 1 1 4 . 1 1 1 . . . . . . Hacks Repelled 2 | . . . . . . . . . . . . . . 2 . . . . . . . . . . Allies | -11 -10 -9 -8 -8 -8 -8 -7 -7 -7 -7 -6 -6 -5 -5 -4 -4 -4 -4 -3 -3 -2 -2 -1 -1 -------- Run | Yrd Mat Mat Mat Gar Mat Gar Fac Gar Fac Gar Fac Gar Fac Gar Fac Gar Fac Gar Res Gar Res Gar Acc Com Total Allies 275 | . . . . 1 . . 2 25 5 3 16 29 13 20 1 26 10 37 . 21 14 15 37 . Largest Group 57 | . . . . 1 1 1 3 21 22 11 19 41 46 45 37 57 44 34 18 26 11 20 17 . Highest-Rated Group 2413 | . . . . 149 149 149 207 764 807 509 1049 2099 2296 2216 1581 2413 1975 1596 852 1266 515 1039 1284 . Highest-Rated Ally 183 | . . . . 149 149 149 149 149 149 149 149 149 149 149 149 149 149 149 56 64 64 119 183 . Total Orders 85 | . . . . . . . . 9 6 6 7 17 5 18 . 12 . 3 . . . . 2 . STAY 19 | . . . . . . . . 1 . . . 5 2 9 . . . 2 . . . . . . FOLLOW 6 | . . . . . . . . . . . . 2 1 3 . . . . . . . . . . AID 59 | . . . . . . . . 8 6 6 7 10 2 6 . 12 . . . . . . 2 . DROP 1 | . . . . . . . . . . . . . . . . . . 1 . . . . . . Ally Attacks 1744 | . . . . 7 . 23 3 53 96 56 55 170 136 130 . 127 90 176 . 231 40 108 243 . Total Damage 59127 | . . . . 298 . 1392 80 1488 2724 1750 1979 5641 3693 3599 . 3175 2860 6482 . 7348 1174 4526 10918 . Kills 366 | . . . . 4 . 16 2 12 20 17 17 35 37 25 . 21 17 34 . 34 12 16 47 . Allies Corrupted 13 | . . . . . . . . . 1 . . 1 . . . 2 3 1 . . . 2 3 . Allies Melted 5 | . . . . . . . . . . . . . . 1 . 1 . . . 3 . . . . Intel | -11 -10 -9 -8 -8 -8 -8 -7 -7 -7 -7 -6 -6 -5 -5 -4 -4 -4 -4 -3 -3 -2 -2 -1 -1 ------- Run | Yrd Mat Mat Mat Gar Mat Gar Fac Gar Fac Gar Fac Gar Fac Gar Fac Gar Fac Gar Res Gar Res Gar Acc Com Active Infowar (turns) 16335 | 55 395 170 1576 . . . . . . . 1366 1712 689 1421 96 1481 712 1952 62 1434 336 1031 1293 554 Optics 14139 | . . . . . . . . . . . 1366 1712 689 1421 96 1481 712 1952 62 1434 336 1031 1293 554 Seismic 2196 | 55 395 170 1576 . . . . . . . . . . . . . . . . . . . . . Robot Analysis Total . | . . . . . . . . . . . . . . . . . . . . . . . . . Derelict Logs Recovered . | . . . . . . . . . . . . . . . . . . . . . . . . . Drone Launches . | . . . . . . . . . . . . . . . . . . . . . . . . . Drone Recoveries . | . . . . . . . . . . . . . . . . . . . . . . . . . Exploration | -11 -10 -9 -8 -8 -8 -8 -7 -7 -7 -7 -6 -6 -5 -5 -4 -4 -4 -4 -3 -3 -2 -2 -1 -1 ------------- Run | Yrd Mat Mat Mat Gar Mat Gar Fac Gar Fac Gar Fac Gar Fac Gar Fac Gar Fac Gar Res Gar Res Gar Acc Com Turns Passed 22422 | 126 395 382 1689 1646 24 796 369 1315 966 489 1366 1712 689 1421 96 1481 712 1952 62 1434 336 1031 1293 640 Spaces Moved 13943 | 70 306 229 997 1046 20 540 283 816 739 298 1047 1065 425 859 53 779 411 973 21 871 211 621 838 425 Core 148 | 3 . . . . . . . . . . . . . . . . . 4 . . . . . 141 Treads 252 | . . . . . . . . . . . . . . . . . . 16 . 236 . . . . Legs 3438 | . . . . . . . . . . . . . . . . . . 828 21 635 211 621 838 284 Wheels 10105 | 67 306 229 997 1046 20 540 283 816 739 298 1047 1065 425 859 53 779 411 125 . . . . . . Hover . | . . . . . . . . . . . . . . . . . . . . . . . . . Flight . | . . . . . . . . . . . . . . . . . . . . . . . . . Fastest Speed 50 | 50 100 100 105 115 120 120 120 120 120 120 120 120 130 130 130 130 145 116 130 126 126 126 126 50 Average Speed 126 | 97 100 110 113 118 120 120 120 120 120 120 120 124 131 130 130 137 145 163 130 135 126 126 134 115 Slowest Speed 1350 | 100 100 115 130 120 120 120 120 120 120 120 120 135 135 130 130 145 145 1350 130 190 126 126 196 190 Overloaded Moves . | . . . . . . . . . . . . . . . . . . . . . . . . . Propulsion Burnouts . | . . . . . . . . . . . . . . . . . . . . . . . . . Robots Hopped . | . . . . . . . . . . . . . . . . . . . . . . . . . Potential Cave-ins . | . . . . . . . . . . . . . . . . . . . . . . . . . Cave-ins Triggered . | . . . . . . . . . . . . . . . . . . . . . . . . . Exploration Rate (%) 48 | 5 60 25 82 90 4 70 10 89 26 59 30 97 16 93 1 88 20 94 1 92 19 83 42 15 Regions Visited 24 Branch Regions 1 Pre-discovered Areas . | . . . . . . . . . . . . . . . . . . . . . . . . . Known Exits Taken 11 | . . . 1 . 1 . 1 . 1 . 1 . 1 . 1 . 1 . 1 . 1 . 1 . Unknown Exits Taken 3 | 1 1 1 . . . . . . . . . . . . . . . . . . . . . . Scrap Searched . | . . . . . . . . . . . . . . . . . . . . . . . . . Spaces Dug 90 | . . . . . . . . . 2 . 2 4 2 16 3 30 6 5 3 5 . 4 6 2 Terrain Destroyed 419 | . . . 17 . . . . . 2 . 2 17 2 16 3 64 6 12 3 90 27 32 69 57 Melee 70 | . . . . . . . . . 2 . 2 4 2 16 3 30 6 2 . . . . 3 . Projectile 51 | . . . . . . . . . . . . . . . . . . 8 3 13 1 9 7 10 AOE 298 | . . . 17 . . . . . . . . 13 . . . 34 . 2 . 77 26 23 59 47 Terrain Rammed . | . . . . . . . . . . . . . . . . . . . . . . . . . Walls Destroyed . | . . . . . . . . . . . . . . . . . . . . . . . . . Machines Disabled . | . . . . . . . . . . . . . . . . . . . . . . . . . Actions | -11 -10 -9 -8 -8 -8 -8 -7 -7 -7 -7 -6 -6 -5 -5 -4 -4 -4 -4 -3 -3 -2 -2 -1 -1 --------- Run | Yrd Mat Mat Mat Gar Mat Gar Fac Gar Fac Gar Fac Gar Fac Gar Fac Gar Fac Gar Res Gar Res Gar Acc Com Total 17197 | 98 350 301 1354 1258 20 640 306 1103 791 381 1131 1344 538 1051 74 1028 502 1233 53 1084 271 811 957 518 Wait 1045 | . 12 33 164 23 . 8 5 115 17 37 34 80 79 51 17 57 50 59 30 78 13 62 9 12 Move 13925 | 69 305 228 997 1045 20 539 283 815 739 297 1047 1064 424 858 52 778 410 972 20 870 211 620 837 425 Hop . | . . . . . . . . . . . . . . . . . . . . . . . . . Pick Up 220 | 5 5 3 31 12 . 14 4 17 4 4 3 23 . 14 . 16 3 20 . 24 1 11 4 2 Fast Attach 68 | 8 1 3 6 1 . . . 2 1 2 . . 1 2 . 1 1 13 . 5 . 13 2 6 Attach 115 | . . 1 5 4 . 1 2 9 1 . 8 6 7 6 1 7 4 14 . 12 7 4 10 6 Detach 27 | 1 . 1 1 1 . . . . . . . . . 1 . . . 4 . 6 1 6 3 2 Swap 212 | 1 1 3 27 27 . 13 4 13 5 4 11 13 . 10 . 19 6 19 . 7 2 9 10 8 Drop 153 | . 1 3 31 13 . 14 1 7 2 4 . 9 2 4 . 10 2 11 . 18 . 12 2 7 Fire 943 | 14 25 26 92 40 . 33 7 33 17 28 26 85 21 53 1 63 20 77 3 61 36 71 75 36 Melee 254 | . . . . 52 . 10 . 20 5 5 2 28 3 34 3 60 6 20 . . . 1 5 . Ram 14 | . . . . . . . . . . . . . . . . . . . . . . . . 14 Kick . | . . . . . . . . . . . . . . . . . . . . . . . . . Crush . | . . . . . . . . . . . . . . . . . . . . . . . . . Escape Stasis 205 | . . . . 40 . 8 . 67 . . . 32 . 16 . 16 . 21 . 3 . 2 . . Rewire 16 | . . . . . . . . 5 . . . 4 1 2 . 1 . 3 . . . . . . Trap . | . . . . . . . . . . . . . . . . . . . . . . . . . Miscellaneous . | . . . . . . . . . . . . . . . . . . . . . . . . . Route ------- -11/Scrapyard -10/Materials (discovered 3 exits: *Mat / [*Min] / [*Sub]) -9/Materials (discovered 2 exits: *Mat / Min) -8/Materials (discovered 4 exits: *Fac x3 / Gar) -8/Garrison (discovered 4 exits: *Mat x4) -8/Materials -8/Garrison (discovered 3 exits: *Fac x3) -7/Factory (discovered 3 exits: *Fac / [*Low] / Gar) -7/Garrison (discovered 3 exits: *Fac x3) -7/Factory (discovered 4 exits: *Fac / [*Low x2] / Gar) -7/Garrison (discovered 3 exits: *Fac x3) -6/Factory (discovered 4 exits: *Fac x2 / [*Low] / Gar) -6/Garrison (discovered 3 exits: *Fac x3) -5/Factory (discovered 2 exits: [*Upp] / Gar) -5/Garrison (discovered 3 exits: *Fac x3) -4/Factory -4/Garrison (discovered 3 exits: *Fac x3) -4/Factory (discovered 3 exits: *Res / [*Upp] / Gar) -4/Garrison (discovered 3 exits: *Res x3) -3/Research -3/Garrison (discovered 3 exits: *Res x3) -2/Research -2/Garrison (discovered 3 exits: *Acc x3) -1/Access -1/Command History --------- Turn | Location | Event 21 | -11/Scrapyard | Discovered new exit (range 15) 127 | -11/Scrapyard | Entered Materials 312 | -10/Materials | Build established: Mutant 331 | -10/Materials | Discovered new exit (range 12) 436 | -10/Materials | Discovered new exit (range 16) 501 | -10/Materials | Discovered new exit (range 9) 522 | -10/Materials | Entered another Materials area 522 | -9/Materials | Evolved 2 slots: Utility x1, Weapon x1 554 | -9/Materials | Identified exit to Mines 888 | -9/Materials | Discovered new exit (range 12) 904 | -9/Materials | Entered another Materials area 904 | -8/Materials | Evolved 2 slots: Utility x2 1061 | -8/Materials | Build established: Scavenger-Gunner 1334 | -8/Materials | Discovered new exit (range 16) 1724 | -8/Materials | Discovered new exit (range 16) 1741 | -8/Materials | Build established: Gunner 1932 | -8/Materials | Discovered new exit (range 16) 2467 | -8/Materials | Garrison activated, responded to threat 2593 | -8/Materials | Identified exit to Garrison 2593 | -8/Materials | Entered Garrison 2630 | -8/Garrison | Triggered checkpoint 2779 | -8/Garrison | Triggered checkpoint 2831 | -8/Garrison | Destroyed 7 combat bots 2837 | -8/Garrison | Core integrity fell below 50% 2880 | -8/Garrison | Discovered new exit (range 13) 2932 | -8/Garrison | Triggered checkpoint 3103 | -8/Garrison | Triggered checkpoint 3213 | -8/Garrison | Discovered new exit (range 9) 3261 | -8/Garrison | Triggered checkpoint 3294 | -8/Garrison | Garrison Relay disabled 3377 | -8/Garrison | Triggered checkpoint 3390 | -8/Garrison | Spotted B-75 Beast 3405 | -8/Garrison | Destroyed B-75 Beast 3433 | -8/Garrison | Destroyed 7 combat bots 3441 | -8/Garrison | Discovered new exit (range 5) 3547 | -8/Garrison | Rescued HV-R5K 3707 | -8/Garrison | Garrison Relay disabled 3905 | -8/Garrison | Triggered checkpoint 4003 | -8/Garrison | Garrison Relay disabled 4065 | -8/Garrison | Discovered new exit (range 10) 4171 | -8/Garrison | Installed Relay Interface Framework 4239 | -8/Garrison | Entered Materials 4239 | -8/Materials | Accompanied by 1 ally (HV-R5K) 4263 | -8/Materials | Identified exit to Garrison 4263 | -8/Materials | Entered Garrison 4263 | -8/Garrison | Accompanied by 1 ally (HV-R5K) 4305 | -8/Garrison | Triggered checkpoint 4341 | -8/Garrison | Expanded RIF knowledge: Signal Jamming 4366 | -8/Garrison | Garrison Relay disabled 4425 | -8/Garrison | Triggered checkpoint 4445 | -8/Garrison | Triggered checkpoint 4447 | -8/Garrison | Triggered checkpoint 4481 | -8/Garrison | Build established: Bothacker-Gunner 4547 | -8/Garrison | Triggered checkpoint 4547 | -8/Garrison | Discovered new exit (range 71) 4547 | -8/Garrison | Discovered new exit (range 20) 4547 | -8/Garrison | Discovered new exit (range 77) 5059 | -8/Garrison | Entered Factory 5059 | -7/Factory | Accompanied by 1 ally (HV-R5K) 5059 | -7/Factory | Evolved 2 slots: Utility x2 5281 | -7/Factory | Discovered new exit (range 15) 5388 | -7/Factory | Discovered new exit (range 15) 5425 | -7/Factory | Identified exit to Garrison 5428 | -7/Factory | Entered Garrison 5428 | -7/Garrison | Accompanied by 3 allies (HV-R5K) 5474 | -7/Garrison | Triggered checkpoint 5502 | -7/Garrison | Garrison Relay disabled 5518 | -7/Garrison | Found embedded Infiltrators 5612 | -7/Garrison | Triggered checkpoint 5678 | -7/Garrison | Triggered checkpoint 5702 | -7/Garrison | Triggered checkpoint 5717 | -7/Garrison | Lost 3 allies 5868 | -7/Garrison | Expanded RIF knowledge: Threat Obfuscation 5889 | -7/Garrison | Discovered new exit (range 3) 5939 | -7/Garrison | Triggered checkpoint 6010 | -7/Garrison | Garrison Relay disabled 6028 | -7/Garrison | Build established: Commander-Mutant 6110 | -7/Garrison | Triggered checkpoint 6161 | -7/Garrison | Garrison Relay disabled 6191 | -7/Garrison | Discovered new exit (range 8) 6312 | -7/Garrison | Discovered new exit (range 10) 6362 | -7/Garrison | Discovered new exit (range 14) 6362 | -7/Garrison | Discovered new exit (range 70) 6362 | -7/Garrison | Discovered new exit (range 48) 6743 | -7/Garrison | Entered Factory 6743 | -7/Factory | Accompanied by 20 allies (HV-R5K) 6931 | -7/Factory | Discovered new exit (range 10) 7052 | -7/Factory | Discovered new exit (range 15) 7359 | -7/Factory | Lost 3 allies 7511 | -7/Factory | Discovered new exit (range 14) 7543 | -7/Factory | First assault squad dispatched 7653 | -7/Factory | Garrison activated, responded to threat 7698 | -7/Factory | Identified exit to Garrison 7709 | -7/Factory | Entered Garrison 7709 | -7/Garrison | Accompanied by 9 allies (HV-R5K) 7808 | -7/Garrison | Discovered new exit (range 78) 7808 | -7/Garrison | Discovered new exit (range 81) 7808 | -7/Garrison | Discovered new exit (range 41) 7821 | -7/Garrison | Garrison Relay disabled 7869 | -7/Garrison | Triggered checkpoint 7885 | -7/Garrison | Triggered checkpoint 7948 | -7/Garrison | Garrison Relay disabled 7955 | -7/Garrison | Triggered checkpoint 7976 | -7/Garrison | Expanded RIF knowledge: Zone Cloak 8030 | -7/Garrison | Triggered checkpoint 8054 | -7/Garrison | Triggered checkpoint 8103 | -7/Garrison | Garrison Relay disabled 8107 | -7/Garrison | Triggered checkpoint 8198 | -7/Garrison | Entered Factory 8198 | -6/Factory | Accompanied by 9 allies (HV-R5K) 8198 | -6/Factory | Evolved 2 slots: Utility x2 8317 | -6/Factory | Discovered new exit (range 14) 8544 | -6/Factory | Build established: Botlord-Gunner 8634 | -6/Factory | Discovered new exit (range 22) 8922 | -6/Factory | Lost 4 allies 9018 | -6/Factory | Discovered new exit (range 3) 9129 | -6/Factory | Build established: Botlord-Mutant 9177 | -6/Factory | Fabricated P-70 Sage (x2) 9271 | -6/Factory | Fabricated P-70 Sage? 9352 | -6/Factory | Fabricated P-70 Sage (x2) 9456 | -6/Factory | Fabricated P-70 Sage? 9521 | -6/Factory | Fabricated P-70 Sage? 9544 | -6/Factory | Build established: Commander-Mutant 9556 | -6/Factory | Identified exit to Garrison 9564 | -6/Factory | Entered Garrison 9564 | -6/Garrison | Accompanied by 19 allies (HV-R5K) 9579 | -6/Garrison | Triggered checkpoint 9653 | -6/Garrison | Garrison Relay disabled 9697 | -6/Garrison | Expanded RIF knowledge: Watcher Feeds 9764 | -6/Garrison | Spotted B-86 Titan 9769 | -6/Garrison | Rewired B-75 Beast 9778 | -6/Garrison | Assimilated Titan 5a with formatsys_high 9796 | -6/Garrison | Found Quantum Capacitor 9801 | -6/Garrison | Rewired B-90 Cyclops 9874 | -6/Garrison | Triggered checkpoint 9874 | -6/Garrison | Spotted B-75 Beast 9882 | -6/Garrison | Assimilated Beast 5b with formatsys_high 9889 | -6/Garrison | Triggered checkpoint 9901 | -6/Garrison | Triggered checkpoint 9902 | -6/Garrison | Sage 5j assimilated hostile Y-54 Guardian 9955 | -6/Garrison | Discovered new exit (range 13) 9992 | -6/Garrison | Triggered checkpoint 10093 | -6/Garrison | Spotted Striker 10093 | -6/Garrison | Spotted Striker 10103 | -6/Garrison | Allies destroyed Striker 10105 | -6/Garrison | Allies destroyed Striker 10116 | -6/Garrison | Rewired Striker 10120 | -6/Garrison | Rewired Striker 10132 | -6/Garrison | Triggered checkpoint 10167 | -6/Garrison | Garrison Relay disabled 10177 | -6/Garrison | Garrison Relay disabled 10396 | -6/Garrison | Triggered checkpoint 10414 | -6/Garrison | Discovered new exit (range 20) 10436 | -6/Garrison | Triggered checkpoint 10453 | -6/Garrison | Triggered checkpoint 10472 | -6/Garrison | Triggered checkpoint 10573 | -6/Garrison | Garrison Relay disabled 10901 | -6/Garrison | Discovered new exit (range 13) 10910 | -6/Garrison | Triggered checkpoint 10953 | -6/Garrison | Lost 3 allies 10969 | -6/Garrison | Garrison Relay disabled 11047 | -6/Garrison | Rescued a captive Derelict 11276 | -6/Garrison | Entered Factory 11276 | -5/Factory | Accompanied by 41 allies (HV-R5K) 11276 | -5/Factory | Evolved 2 slots: Utility x2 11282 | -5/Factory | Discovered new exit (range 16) 11476 | -5/Factory | Spotted B-75 Beast 11488 | -5/Factory | Allies destroyed B-75 Beast 11509 | -5/Factory | Fabricated P-70 Sage? 11699 | -5/Factory | Fabricated P-70 Sage? 11795 | -5/Factory | Fabricated P-70 Sage? 11805 | -5/Factory | P-70 Sage assimilated allied Slayer 6a 11857 | -5/Factory | Sage 6d assimilated hostile G-50 Soldier 11876 | -5/Factory | First assault squad dispatched 11882 | -5/Factory | Identified exit to Garrison 11898 | -5/Factory | Lost 5 allies 11965 | -5/Factory | Entered Garrison 11965 | -5/Garrison | Accompanied by 37 allies (HV-R5K) 11965 | -5/Garrison | Spotted B-86 Titan 11973 | -5/Garrison | Rewired B-86 Titan 11980 | -5/Garrison | Rewired B-86 Titan 11981 | -5/Garrison | Allies destroyed B-86 Titan 12037 | -5/Garrison | Triggered checkpoint 12108 | -5/Garrison | Lost 3 allies 12401 | -5/Garrison | Triggered checkpoint 12403 | -5/Garrison | Triggered checkpoint 12439 | -5/Garrison | Sage 5a assimilated hostile G-67 Veteran 12440 | -5/Garrison | Sage 5d assimilated hostile G-50 Soldier 12460 | -5/Garrison | Sage 5d assimilated hostile G-50 Soldier 12463 | -5/Garrison | Triggered checkpoint 12474 | -5/Garrison | Triggered checkpoint 12489 | -5/Garrison | Lost 5 allies 12521 | -5/Garrison | Triggered checkpoint 12582 | -5/Garrison | Found Fusion Bomb Launcher 12664 | -5/Garrison | Discovered new exit (range 3) 12686 | -5/Garrison | Expanded RIF knowledge: Command Fork 12875 | -5/Garrison | Triggered checkpoint 12933 | -5/Garrison | Garrison Relay disabled 12966 | -5/Garrison | Discovered new exit (range 12) 13066 | -5/Garrison | Discovered new exit (range 21) 13106 | -5/Garrison | Triggered checkpoint 13120 | -5/Garrison | Spotted Executioner 13142 | -5/Garrison | Destroyed Executioner 13162 | -5/Garrison | Rewired Executioner 13171 | -5/Garrison | Lost 5 allies 13215 | -5/Garrison | Garrison Relay disabled 13386 | -5/Garrison | Entered Factory 13386 | -4/Factory | Accompanied by 36 allies (HV-R5K) 13386 | -4/Factory | Evolved 2 slots: Propulsion x1, Utility x1 13468 | -4/Factory | Identified exit to Garrison 13482 | -4/Factory | Entered Garrison 13482 | -4/Garrison | Accompanied by 37 allies (HV-R5K) 13522 | -4/Garrison | Triggered checkpoint 13602 | -4/Garrison | Garrison Relay disabled 13724 | -4/Garrison | Triggered checkpoint 13738 | -4/Garrison | Sage 5b assimilated hostile Y-64 Sentinel 13741 | -4/Garrison | Triggered checkpoint 13742 | -4/Garrison | Triggered checkpoint 13748 | -4/Garrison | Triggered checkpoint 13804 | -4/Garrison | Triggered checkpoint 13850 | -4/Garrison | Triggered checkpoint 13876 | -4/Garrison | Expanded RIF knowledge: Command Fork 13919 | -4/Garrison | Discovered new exit (range 12) 14099 | -4/Garrison | Learned Factory security intel 14107 | -4/Garrison | Discovered new exit (range 15) 14199 | -4/Garrison | Triggered checkpoint 14248 | -4/Garrison | Triggered checkpoint 14259 | -4/Garrison | System corruption reached 10% 14286 | -4/Garrison | Garrison Relay disabled 14289 | -4/Garrison | Lost 4 parts (4u) 14300 | -4/Garrison | Lost 4 allies 14552 | -4/Garrison | Garrison Relay disabled 14592 | -4/Garrison | Discovered new exit (range 11) 14595 | -4/Garrison | Triggered checkpoint 14624 | -4/Garrison | Garrison Relay disabled 14963 | -4/Garrison | Entered Factory 14963 | -4/Factory | Accompanied by 42 allies (HV-R5K) 15396 | -4/Factory | Lost 5 allies 15406 | -4/Factory | Discovered new exit (range 30) 15537 | -4/Factory | Discovered new exit (range 9) 15582 | -4/Factory | Identified exit to Garrison 15675 | -4/Factory | Entered Garrison 15675 | -4/Garrison | Accompanied by 29 allies (HV-R5K) 15720 | -4/Garrison | Triggered checkpoint 15758 | -4/Garrison | Triggered checkpoint 15767 | -4/Garrison | Garrison Relay disabled 15892 | -4/Garrison | Lost 3 allies 15925 | -4/Garrison | Spotted B-86 Titan 15963 | -4/Garrison | Allies destroyed B-86 Titan 16002 | -4/Garrison | Lost 7 allies 16004 | -4/Garrison | Lost 5 parts (2n3w) 16168 | -4/Garrison | Found Exp. Core Analyzer 16183 | -4/Garrison | Triggered checkpoint 16188 | -4/Garrison | Triggered checkpoint 16205 | -4/Garrison | Triggered checkpoint 16242 | -4/Garrison | Lost 11 allies 16326 | -4/Garrison | Build established: Botlord-Mutant 16466 | -4/Garrison | Triggered checkpoint 16490 | -4/Garrison | Garrison Relay disabled 16629 | -4/Garrison | P-70 Sage assimilated allied Sentinel 7d 16633 | -4/Garrison | P-70 Sage assimilated allied Archangel 7a 16647 | -4/Garrison | Spotted B-86 Titan 16657 | -4/Garrison | Allies destroyed B-86 Titan 16667 | -4/Garrison | Lost 3 parts (1p1u1w) 16682 | -4/Garrison | Lost 5 allies 16709 | -4/Garrison | Garrison Relay disabled 16729 | -4/Garrison | Triggered checkpoint 16769 | -4/Garrison | Discovered new exit (range 3) 16953 | -4/Garrison | Spotted B-86 Titan 16972 | -4/Garrison | Assimilated Titan 7a with formatsys_high 17074 | -4/Garrison | Expanded RIF knowledge: Program Shield 17101 | -4/Garrison | Triggered checkpoint 17132 | -4/Garrison | Garrison Relay disabled 17153 | -4/Garrison | Rescued a captive Derelict 17247 | -4/Garrison | Discovered new exit (range 14) 17260 | -4/Garrison | Build established: Botlord-Gunner 17374 | -4/Garrison | Garrison Relay disabled 17383 | -4/Garrison | Triggered checkpoint 17498 | -4/Garrison | Lost 7 allies 17520 | -4/Garrison | Expanded RIF knowledge: Threat Obfuscation 17535 | -4/Garrison | Discovered new exit (range 3) 17627 | -4/Garrison | Entered Research 17627 | -3/Research | Accompanied by 18 allies 17627 | -3/Research | Evolved 2 slots: Propulsion x1, Weapon x1 17642 | -3/Research | Identified exit to Garrison 17689 | -3/Research | Entered Garrison 17689 | -3/Garrison | Accompanied by 18 allies 17703 | -3/Garrison | Build established: Botlord-Tank 17715 | -3/Garrison | Expanded RIF knowledge: Code Merge 17812 | -3/Garrison | Triggered checkpoint 17845 | -3/Garrison | Phase Generator disabled 17872 | -3/Garrison | Garrison Relay disabled 17913 | -3/Garrison | Spotted B-86 Titan 17921 | -3/Garrison | Triggered checkpoint 17925 | -3/Garrison | Triggered checkpoint 17930 | -3/Garrison | Triggered checkpoint 17933 | -3/Garrison | Triggered checkpoint 17938 | -3/Garrison | Allies destroyed B-86 Titan 17986 | -3/Garrison | Lost 8 allies 18096 | -3/Garrison | Garrison Relay disabled 18106 | -3/Garrison | Triggered checkpoint 18191 | -3/Garrison | Lost 7 allies 18281 | -3/Garrison | Discovered new exit (range 12) 18437 | -3/Garrison | Triggered checkpoint 18441 | -3/Garrison | Spotted Striker 18441 | -3/Garrison | Spotted Striker 18464 | -3/Garrison | Allies destroyed Striker 18482 | -3/Garrison | Garrison Relay disabled 18504 | -3/Garrison | Lost 4 allies 18565 | -3/Garrison | Discovered new exit (range 8) 18603 | -3/Garrison | Spotted B-86 Titan 18679 | -3/Garrison | Lost 3 allies 18782 | -3/Garrison | Discovered new exit (range 13) 18813 | -3/Garrison | Triggered checkpoint 18832 | -3/Garrison | Garrison Relay disabled 18890 | -3/Garrison | Build established: Botlord-Mutant 18969 | -3/Garrison | Triggered checkpoint 18976 | -3/Garrison | Garrison Relay disabled 19081 | -3/Garrison | Spotted B-86 Titan 19081 | -3/Garrison | Spotted B-86 Titan 19123 | -3/Garrison | Entered Research 19123 | -2/Research | Accompanied by 4 allies 19123 | -2/Research | Evolved 2 slots: Utility x2 19151 | -2/Research | Lost 3 allies 19240 | -2/Research | Lost 5 allies 19268 | -2/Research | Found Exp. System Shield 19276 | -2/Research | Spotted B-90 Cyclops 19452 | -2/Research | Identified exit to Garrison 19459 | -2/Research | Entered Garrison 19459 | -2/Garrison | Accompanied by 10 allies 19491 | -2/Garrison | Garrison Relay disabled 19501 | -2/Garrison | Triggered checkpoint 19551 | -2/Garrison | Spotted B-90 Cyclops 19554 | -2/Garrison | Triggered checkpoint 19561 | -2/Garrison | Triggered checkpoint 19578 | -2/Garrison | Triggered checkpoint 19587 | -2/Garrison | Allies destroyed B-90 Cyclops 19601 | -2/Garrison | Triggered checkpoint 19654 | -2/Garrison | Garrison Relay disabled 19667 | -2/Garrison | Triggered checkpoint 19707 | -2/Garrison | Discovered new exit (range 15) 19774 | -2/Garrison | Found Prototype Device 19774 | -2/Garrison | Identified Exp. Shield Generator 19791 | -2/Garrison | QS Assembler disabled 19834 | -2/Garrison | Found Prototype Launcher 19834 | -2/Garrison | Identified Hellfire Missile Launcher 20018 | -2/Garrison | Discovered new exit (range 67) 20018 | -2/Garrison | Discovered new exit (range 12) 20018 | -2/Garrison | Discovered new exit (range 39) 20048 | -2/Garrison | Lost 6 allies 20087 | -2/Garrison | Triggered checkpoint 20100 | -2/Garrison | Garrison Relay disabled 20120 | -2/Garrison | Spotted Executioner 20135 | -2/Garrison | Rewired Executioner 20157 | -2/Garrison | Found Exp. Core Analyzer 20166 | -2/Garrison | Allies destroyed Executioner 20171 | -2/Garrison | Found Prototype Device 20171 | -2/Garrison | Identified Adv. Kinecellerator 20193 | -2/Garrison | Lost 6 allies 20329 | -2/Garrison | Build established: Botlord-Tank 20365 | -2/Garrison | Expanded RIF knowledge: Patrol Navigation 20385 | -2/Garrison | Triggered checkpoint 20406 | -2/Garrison | Garrison Relay disabled 20490 | -2/Garrison | Entered Access 20490 | -1/Access | Accompanied by 11 allies 20490 | -1/Access | Evolved 2 slots: Power x1, Weapon x1 20699 | -1/Access | Lost 3 allies 20763 | -1/Access | Lost 4 allies 21099 | -1/Access | Lost 9 allies 21489 | -1/Access | Fabricated P-70 Sage (x2) 21490 | -1/Access | First assault squad dispatched 21499 | -1/Access | Lost 3 allies 21550 | -1/Access | Identified exit to Command 21593 | -1/Access | Garrison activated, responded to threat 21641 | -1/Access | Lost 7 allies 21707 | -1/Access | Lost 6 allies 21750 | -1/Access | Spotted B-99 Colossus 21750 | -1/Access | Spotted B-99 Colossus 21783 | -1/Access | Entered Command 21804 | -1/Command | Lost 5 parts (1p1n1u2w) 21811 | -1/Command | Lost 4 allies 21952 | -1/Command | Spotted B-99 Colossus 22049 | -1/Command | Build established: Hacker-Mutant 22300 | -1/Command | Spotted B-99 Colossus 22313 | -1/Command | System corruption reached 10% 22337 | -1/Command | Released all parts (18) 22367 | -1/Command | Lost 5 parts (1n4u) 22369 | -1/Command | Core integrity fell below 50% 22371 | -1/Command | Phase Generator disabled 22415 | -1/Command | Core integrity fell below 20% 22423 | -1/Command | Destroyed by S-43 Plague with Heavy Machine Gun Last Messages --------------- 22340_ Slug penetrates Wall. 22340_ Acquired 3 matter. 22345_ System corrupted: Component data lost. 22362_ Slammed into P-80 Master. 22365_ System corrupted: Heat flow error (+207). 22365_ Slammed into P-80 Master. 22368_ Destabilizing: Core damaged (-16). 22369_ Slammed into P-80 Master. 22371_ Phase Generator explodes. 22371_ Machine disabled. 22371_ Slammed into P-80 Master. 22372_ Slug penetrates Door. 22372_ Slammed into P-80 Master. 22376_ Penetrated by Slug. 22376_ Slug penetrates Wall. 22405_ System corrupted: Matter fused (-9). 22413_ ALERT: Suspicious intruders detected, dispatching Cutter reinforcements to area. 22420_ Slammed into S-43 Plague. 22423_ K-01 Serf collects debris. Map ----- +----------------------------------------------------+ | ?????????????????????? # #?# # ####### | | ???????????????????????? # #?# + | | ????????????????????????##+### #?# # #### | | ??????????????########### ## ########### #??? | | ???? %% % #??? | | ???? ########## ################# #??? | | ????????????????????????## ##???????????????# #### | | ?????????????????????????# #????????####????# | | ?????????????????????????# #????????# ???# #### | | ?????????????????????????# #????????# ???# #??? | | ?????????????????????????# #????????# ??# #??? | | ?????????????????????????# #????????# ?## #??? | | ?????????????????????????# #????????# !!! # #### | | ???????????????????# ????# #????????# !! # | | ???????????????????# ??# #####+#### ! % | | ??????????? # #pp # [!= "" | | ??????????? / + p + *[*] "" | | ??????????? # # # #=! "" | | ???????????????????# ??# !! # | | ???????????????????# ????# !! # | | ?????????????????????????# # | | ?????????????H?????????### ;#;;# | | ???????????????????????#; ; ## | | ???????????????????????## % ## | | ??????????????????????### % | | ??????????????????????# ;@ ## # ## | | ??????????????????????### s ### #" ##### #? | | ???????????????????????####s##### ####+###???# #? | | ???????????????????????# * = ####??????????#+"# | | ???????????????????????# s #?????????????# | | ???????????????????????# "" #?????????????# | | ???????????????????????# """ * #?????????????# | | ???????????????????????# "T #?????????????# | | ???????????????????????# """ #?????????????# | | ???????????????????????# "" #?????????????# | | ???????????????????????# ! #?????????????#### | | ???????????????????????# #????????????????? | | ???????????????????????##########????????????????? | | ?????????????????????????????????????????????????? | | ?????????????????????????????????????????????????? | | ?????????????????????????????????????????????????? | | ?????????????????????????????????????????????????? | | ?????????????????????????????????????????????????# | | ?????????????????????????????????????????????????# | | ?????????????????????????????????????????????????# | | ?????????????????????????????????????????????????# | | ?????????????????????????????????????????????????# | | ?????????????????????????????????????????????????# | | ?????????????????????????????????????????????????# | | ?????????????????????????????????????????????????# | +----------------------------------------------------+ Best States ------------- Heat Dissipation 59 Energy Generation 43 Energy Capacity 590 Matter Stores 300 Matter Capacity 300 Sight Range 22 Terrain Scan Density 10 Base Temperature (-) 100 EM Shielding 4 Armor Coverage 600 Resistance: TH 20 Evasion (%) 55 Targeting Accuracy 16 Target Analysis 8 Core Analysis 12 Recoil Reduction 4 Offensive Hacking 22 Defensive Hacking 30 Relay Coupler Types 9 Relay Coupler Value 200 Authchip Count 5 Item Schematics ----------------- None Robot Schematics ------------------ P-70 Sage | -6/Factory | Hacked I-47 Archangel | -6/Factory | Hacked Fabricated ------------ P-70 Sage | x2 | -6/Factory | Authchip P-70 Sage | x2 | -6/Factory | Authchip P-70 Sage | x2 | -6/Factory | Authchip P-70 Sage | x2 | -6/Factory | Authchip P-70 Sage | x2 | -6/Factory | Authchip P-70 Sage | x2 | -5/Factory | Authchip P-70 Sage | x2 | -5/Factory | Authchip P-70 Sage | x2 | -5/Factory | Authchip P-70 Sage | x2 | -1/Access Repaired ---------- Nothing Alien Tech Used ----------------- None Achievements -------------- Gunslinger Challenges ------------ None Game ------ Seed MolecularLayeredConstruct Manual? 0 Play Time 05:42:15 Cumulative 143.7 hours Start 2025.09.03 @ 21:25:14 End 2025.09.05 @ 01:14:24 Sessions 3 Manual Loads 0 Difficulty Rogue Special Mode None Game No. 63 Rogue 63 Adventurer 0 Explorer 0 Win Type - Total 2 Types 2/0/0/0/0/0/0/0/0/0 Lore% 19 Gallery% 53 Achievement% 46 Wizard Run 0 Options --------- Layout 1 ASCII 0 Keyboard 0 Movement Mouse Keybinds 0 Fullscreen 1 Font 24/Smallcaps Map View 50x35 Zoom Use 0% Tactical HUD 1 Map Filters NONE Filters NONE Steam 1 RUN: b448b7b9-1f28-46f8-89db-f8fbebe0d648